[Event "Titled Tuesday Blitz June 20 Late 2023"]
[White "Kovalevsky, Stanislav"]
[Black "Can, Isik"]
[WhiteFideId "13508598"]
[BlackFideId "6383742"]
[WhiteElo "2112"]
[BlackElo "2374"]
[Result "0-1"]
[Round "6"]
[TimeControl "180+2"]
[Date "2023.06.20"]
[WhiteClock "0:00:34"]
[BlackClock "0:00:51"]
[Board "40"]

1. c4 {[%clk 0:03:00]}  c6 {[%clk 0:02:58]} 2. e4 {[%clk 0:02:59]}  d5 {[%clk 0:02:57]} 3. exd5 {[%clk 0:02:59]}  cxd5 {[%clk 0:02:57]} 4. cxd5 {[%clk 0:03:00]}  Nf6 {[%clk 0:02:57]} 5. Nc3 {[%clk 0:03:01]}  Nxd5 {[%clk 0:02:57]} 6. Bc4 {[%clk 0:03:02]}  Nb6 {[%clk 0:02:50]} 7. Bb3 {[%clk 0:03:03]}  Nc6 {[%clk 0:02:49]} 8. Nge2 {[%clk 0:03:02]}  Bf5 {[%clk 0:02:46]} 9. d4 {[%clk 0:03:01]}  e6 {[%clk 0:02:46]} 10. O-O {[%clk 0:03:01]}  Be7 {[%clk 0:02:46]} 11. Ng3 {[%clk 0:03:01]}  Bg6 {[%clk 0:02:45]} 12. d5 {[%clk 0:03:01]}  exd5 {[%clk 0:02:43]} 13. Nxd5 {[%clk 0:03:02]}  O-O {[%clk 0:02:41]} 14. Nxe7+ {[%clk 0:03:01]}  Qxe7 {[%clk 0:02:42]} 15. Re1 {[%clk 0:02:58]}  Qf6 {[%clk 0:02:39]} 16. Ne4 {[%clk 0:02:47]}  Bxe4 {[%clk 0:02:32]} 17. Rxe4 {[%clk 0:02:48]}  Rad8 {[%clk 0:02:32]} 18. Qe1 {[%clk 0:02:35]}  Nd4 {[%clk 0:02:28]} 19. Bd1 {[%clk 0:02:22]}  Ne6 {[%clk 0:02:16]} 20. Rb1 {[%clk 0:02:07]}  Nc5 {[%clk 0:01:45]} 21. Rg4 {[%clk 0:02:00]}  Nd3 {[%clk 0:01:34]} 22. Bg5 {[%clk 0:01:35]}  Qxg5 {[%clk 0:01:25]} 23. Rxg5 {[%clk 0:01:08]}  Nxe1 {[%clk 0:01:24]} 24. a4 {[%clk 0:01:07]}  Nd3 {[%clk 0:01:19]} 25. a5 {[%clk 0:01:07]}  Nd5 {[%clk 0:01:15]} 26. Bf3 {[%clk 0:01:07]}  Nf6 {[%clk 0:01:12]} 27. Bxb7 {[%clk 0:01:04]}  Nxb2 {[%clk 0:01:10]} 28. h3 {[%clk 0:00:59]}  Nc4 {[%clk 0:01:09]} 29. Rb3 {[%clk 0:00:53]}  Nd2 {[%clk 0:00:52]} 30. Ra3 {[%clk 0:00:46]}  Nde4 {[%clk 0:00:52]} 31. Re5 {[%clk 0:00:37]}  Nd6 {[%clk 0:00:52]} 32. a6 {[%clk 0:00:36]}  Nc4 {[%clk 0:00:52]} 33. Raa5 {[%clk 0:00:34]}  Nxa5 {[%clk 0:00:51]} 0-1


[Site "https://www.chess.com"]

[Event "Titled Tuesday Blitz June 20 Late 2023"]
[White "Dilmukhametov, Artur"]
[Black "Barp, Alberto"]
[WhiteFideId "24179922"]
[BlackFideId "872555"]
[WhiteElo "2242"]
[BlackElo "2313"]
[Result "0-1"]
[Round "6"]
[TimeControl "180+2"]
[Date "2023.06.20"]
[WhiteClock "0:00:00"]
[BlackClock "0:00:04"]
[Board "41"]

1. e4 {[%clk 0:03:00]}  c5 {[%clk 0:02:57]} 2. Nf3 {[%clk 0:03:00]}  a6 {[%clk 0:02:57]} 3. c3 {[%clk 0:02:58]}  e6 {[%clk 0:02:57]} 4. d4 {[%clk 0:02:59]}  d5 {[%clk 0:02:55]} 5. e5 {[%clk 0:02:55]}  Bd7 {[%clk 0:02:55]} 6. a3 {[%clk 0:02:51]}  Qb6 {[%clk 0:02:52]} 7. b4 {[%clk 0:02:51]}  cxd4 {[%clk 0:02:52]} 8. cxd4 {[%clk 0:02:52]}  a5 {[%clk 0:02:49]} 9. bxa5 {[%clk 0:02:50]}  Qxa5+ {[%clk 0:02:46]} 10. Bd2 {[%clk 0:02:50]}  Qa7 {[%clk 0:02:40]} 11. Bd3 {[%clk 0:02:49]}  Nc6 {[%clk 0:02:37]} 12. Bc3 {[%clk 0:02:38]}  Nge7 {[%clk 0:02:34]} 13. O-O {[%clk 0:02:38]}  Nf5 {[%clk 0:02:33]} 14. Bxf5 {[%clk 0:02:34]}  exf5 {[%clk 0:02:34]} 15. Nbd2 {[%clk 0:02:14]}  Be7 {[%clk 0:02:32]} 16. Qb3 {[%clk 0:02:09]}  Be6 {[%clk 0:02:24]} 17. Rfb1 {[%clk 0:02:09]}  Rb8 {[%clk 0:02:15]} 18. Qb6 {[%clk 0:02:04]}  Qxb6 {[%clk 0:02:13]} 19. Rxb6 {[%clk 0:02:05]}  Kd7 {[%clk 0:02:12]} 20. Rab1 {[%clk 0:02:04]}  Kc7 {[%clk 0:02:12]} 21. a4 {[%clk 0:02:03]}  g5 {[%clk 0:02:04]} 22. Ne1 {[%clk 0:02:01]}  f4 {[%clk 0:02:03]} 23. R1b2 {[%clk 0:01:50]}  Bf5 {[%clk 0:02:02]} 24. Nb3 {[%clk 0:01:43]}  Rhc8 {[%clk 0:01:55]} 25. Na5 {[%clk 0:01:40]}  Nxa5 {[%clk 0:01:49]} 26. Bxa5 {[%clk 0:01:41]}  Kd7 {[%clk 0:01:47]} 27. Rxb7+ {[%clk 0:01:40]}  Rxb7 {[%clk 0:01:48]} 28. Rxb7+ {[%clk 0:01:41]}  Ke8 {[%clk 0:01:48]} 29. Bc7 {[%clk 0:01:20]}  Bb4 {[%clk 0:01:10]} 30. Rxb4 {[%clk 0:00:57]}  Rxc7 {[%clk 0:01:10]} 31. Kf1 {[%clk 0:00:58]}  Rc1 {[%clk 0:01:06]} 32. Ke2 {[%clk 0:00:58]}  Ra1 {[%clk 0:01:06]} 33. h3 {[%clk 0:00:40]}  Ra2+ {[%clk 0:01:04]} 34. Kf1 {[%clk 0:00:41]}  Kf8 {[%clk 0:00:50]} 35. Nf3 {[%clk 0:00:37]}  h6 {[%clk 0:00:47]} 36. Rb8+ {[%clk 0:00:32]}  Kg7 {[%clk 0:00:47]} 37. Ra8 {[%clk 0:00:33]}  Ra1+ {[%clk 0:00:30]} 38. Ke2 {[%clk 0:00:33]}  Ra2+ {[%clk 0:00:30]} 39. Ke1 {[%clk 0:00:33]}  Bd3 {[%clk 0:00:24]} 40. Ra7 {[%clk 0:00:20]}  Kg6 {[%clk 0:00:18]} 41. Ra6+ {[%clk 0:00:20]}  Kg7 {[%clk 0:00:18]} 42. Ra7 {[%clk 0:00:20]}  Kg6 {[%clk 0:00:13]} 43. e6 {[%clk 0:00:20]}  Re2+ {[%clk 0:00:12]} 44. Kd1 {[%clk 0:00:21]}  f6 {[%clk 0:00:11]} 45. e7 {[%clk 0:00:20]}  Kf7 {[%clk 0:00:08]} 46. a5 {[%clk 0:00:07]}  Rxe7 {[%clk 0:00:06]} 47. Rxe7+ {[%clk 0:00:08]}  Kxe7 {[%clk 0:00:07]} 48. Kd2 {[%clk 0:00:08]}  Bf1 {[%clk 0:00:07]} 49. Ne1 {[%clk 0:00:08]}  Kd6 {[%clk 0:00:07]} 50. Kc3 {[%clk 0:00:08]}  Kc6 {[%clk 0:00:07]} 51. Kb4 {[%clk 0:00:09]}  f5 {[%clk 0:00:07]} 52. Ka4 {[%clk 0:00:06]}  h5 {[%clk 0:00:07]} 53. f3 {[%clk 0:00:06]}  h4 {[%clk 0:00:06]} 54. Kb4 {[%clk 0:00:06]}  g4 {[%clk 0:00:06]} 55. fxg4 {[%clk 0:00:05]}  fxg4 {[%clk 0:00:07]} 56. hxg4 {[%clk 0:00:06]}  Bxg2 {[%clk 0:00:04]} 57. Nxg2 {[%clk 0:00:00]}  h3 {[%clk 0:00:04]} 0-1


[Site "https://www.chess.com"]

[Event "Titled Tuesday Blitz June 20 Late 2023"]
[White "Fiorito, Francisco"]
[Black "Bluebaum, Matthias"]
[WhiteFideId "180165"]
[BlackFideId "24651516"]
[WhiteElo "2319"]
[BlackElo "2639"]
[Result "0-1"]
[Round "6"]
[TimeControl "180+2"]
[Date "2023.06.20"]
[WhiteClock "0:00:00"]
[BlackClock "0:00:54"]
[Board "42"]

1. d4 {[%clk 0:03:00]}  d5 {[%clk 0:03:00]} 2. Nc3 {[%clk 0:03:00]}  e6 {[%clk 0:03:00]} 3. Bf4 {[%clk 0:02:56]}  c5 {[%clk 0:03:00]} 4. e3 {[%clk 0:02:48]}  a6 {[%clk 0:02:59]} 5. Nf3 {[%clk 0:02:48]}  Nc6 {[%clk 0:03:00]} 6. dxc5 {[%clk 0:02:44]}  Bxc5 {[%clk 0:03:01]} 7. Bd3 {[%clk 0:02:42]}  f6 {[%clk 0:03:01]} 8. e4 {[%clk 0:02:36]}  d4 {[%clk 0:03:01]} 9. Ne2 {[%clk 0:02:33]}  e5 {[%clk 0:03:02]} 10. Bd2 {[%clk 0:02:32]}  Nge7 {[%clk 0:03:01]} 11. a3 {[%clk 0:02:32]}  Be6 {[%clk 0:03:01]} 12. Ng3 {[%clk 0:02:29]}  Qd7 {[%clk 0:03:00]} 13. Qe2 {[%clk 0:02:28]}  O-O {[%clk 0:02:55]} 14. O-O {[%clk 0:02:27]}  Rac8 {[%clk 0:02:54]} 15. Rfd1 {[%clk 0:02:26]}  b5 {[%clk 0:02:54]} 16. Be1 {[%clk 0:02:24]}  Qe8 {[%clk 0:02:52]} 17. a4 {[%clk 0:02:06]}  bxa4 {[%clk 0:02:45]} 18. Rxa4 {[%clk 0:02:06]}  a5 {[%clk 0:02:46]} 19. Bb5 {[%clk 0:02:04]}  Qf7 {[%clk 0:02:43]} 20. b3 {[%clk 0:02:04]}  Bb4 {[%clk 0:02:40]} 21. Bxb4 {[%clk 0:01:58]}  Nxb4 {[%clk 0:02:40]} 22. Ne1 {[%clk 0:01:52]}  Rc5 {[%clk 0:02:29]} 23. Bd3 {[%clk 0:01:28]}  Rfc8 {[%clk 0:02:26]} 24. Rda1 {[%clk 0:01:28]}  Nec6 {[%clk 0:02:16]} 25. h4 {[%clk 0:01:22]}  Rc3 {[%clk 0:02:10]} 26. R4a3 {[%clk 0:01:16]}  Nxd3 {[%clk 0:02:00]} 27. Nxd3 {[%clk 0:01:12]}  h6 {[%clk 0:01:46]} 28. Nf1 {[%clk 0:01:08]}  Nb4 {[%clk 0:01:38]} 29. Nxb4 {[%clk 0:01:02]}  axb4 {[%clk 0:01:39]} 30. R3a2 {[%clk 0:00:51]}  Qg6 {[%clk 0:01:37]} 31. Rb2 {[%clk 0:00:43]}  Bg4 {[%clk 0:01:33]} 32. Qe1 {[%clk 0:00:34]}  Qh5 {[%clk 0:01:25]} 33. f3 {[%clk 0:00:27]}  Bxf3 {[%clk 0:01:18]} 34. gxf3 {[%clk 0:00:25]}  Rxf3 {[%clk 0:01:19]} 35. c3 {[%clk 0:00:16]}  Rcxc3 {[%clk 0:01:15]} 36. Rg2 {[%clk 0:00:16]}  Qf7 {[%clk 0:01:07]} 37. Ng3 {[%clk 0:00:16]}  Rce3 {[%clk 0:01:06]} 38. Ne2 {[%clk 0:00:09]}  d3 {[%clk 0:01:02]} 39. Ra8+ {[%clk 0:00:09]}  Kh7 {[%clk 0:01:01]} 40. h5 {[%clk 0:00:04]}  Rxe2 {[%clk 0:00:58]} 41. Rxe2 {[%clk 0:00:03]}  dxe2 {[%clk 0:00:59]} 42. Qxe2 {[%clk 0:00:04]}  Qxh5 {[%clk 0:00:55]} 43. Qg2 {[%clk 0:00:04]}  Rxb3 {[%clk 0:00:54]} 44. Ra7 {[%clk 0:00:03]}  Rb1+ {[%clk 0:00:54]} 45. Qf1 {[%clk 0:00:00]}  Rxf1+ {[%clk 0:00:54]} 0-1


[Site "https://www.chess.com"]

[Event "Titled Tuesday Blitz June 20 Late 2023"]
[White "Zhigalko, Sergei"]
[Black "Banzea, Alexandru-Bogdan"]
[WhiteFideId "13502956"]
[BlackFideId "1232622"]
[WhiteElo "2626"]
[BlackElo "2294"]
[Result "1/2-1/2"]
[Round "6"]
[TimeControl "180+2"]
[Date "2023.06.20"]
[WhiteClock "0:00:10"]
[BlackClock "0:00:12"]
[Board "45"]

1. g4 {[%clk 0:03:00]}  d5 {[%clk 0:02:58]} 2. Bg2 {[%clk 0:03:00]}  c6 {[%clk 0:02:55]} 3. g5 {[%clk 0:03:00]}  e5 {[%clk 0:02:46]} 4. h4 {[%clk 0:03:00]}  Bd6 {[%clk 0:02:44]} 5. c4 {[%clk 0:02:50]}  dxc4 {[%clk 0:02:22]} 6. Na3 {[%clk 0:02:45]}  Bxa3 {[%clk 0:02:20]} 7. bxa3 {[%clk 0:02:46]}  Ne7 {[%clk 0:02:19]} 8. Bb2 {[%clk 0:02:42]}  Qd6 {[%clk 0:02:08]} 9. Nf3 {[%clk 0:02:33]}  f6 {[%clk 0:02:02]} 10. h5 {[%clk 0:02:25]}  h6 {[%clk 0:01:58]} 11. gxf6 {[%clk 0:02:13]}  gxf6 {[%clk 0:01:58]} 12. Qc2 {[%clk 0:02:13]}  Be6 {[%clk 0:01:55]} 13. O-O-O {[%clk 0:02:09]}  Nd7 {[%clk 0:01:45]} 14. d4 {[%clk 0:01:54]}  cxd3 {[%clk 0:01:44]} 15. Rxd3 {[%clk 0:01:48]}  Qc5 {[%clk 0:01:40]} 16. Nh4 {[%clk 0:00:42]}  Qxf2 {[%clk 0:01:24]} 17. Kb1 {[%clk 0:00:36]}  Rg8 {[%clk 0:01:13]} 18. Rd6 {[%clk 0:00:27]}  Rxg2 {[%clk 0:00:53]} 19. Rxe6 {[%clk 0:00:26]}  Rg1+ {[%clk 0:00:49]} 20. Rxg1 {[%clk 0:00:25]}  Qxg1+ {[%clk 0:00:50]} 21. Bc1 {[%clk 0:00:26]}  Qb6+ {[%clk 0:00:21]} 22. Bb2 {[%clk 0:00:25]}  Qg1+ {[%clk 0:00:20]} 23. Bc1 {[%clk 0:00:25]}  Qb6+ {[%clk 0:00:20]} 24. Bb2 {[%clk 0:00:10]}  Qg1+ {[%clk 0:00:12]} 1/2-1/2


[Site "https://www.chess.com"]

[Event "Titled Tuesday Blitz June 20 Late 2023"]
[White "Indjic, Aleksandar"]
[Black "Taboas Rodriguez, Daniel"]
[WhiteFideId "911925"]
[BlackFideId "2208466"]
[WhiteElo "2614"]
[BlackElo "2365"]
[Result "1-0"]
[Round "6"]
[TimeControl "180+2"]
[Date "2023.06.20"]
[WhiteClock "0:01:31"]
[BlackClock "0:00:01"]
[Board "46"]

1. d4 {[%clk 0:03:00]}  Nf6 {[%clk 0:02:57]} 2. c4 {[%clk 0:03:01]}  g6 {[%clk 0:02:58]} 3. Nc3 {[%clk 0:03:01]}  Bg7 {[%clk 0:02:58]} 4. Nf3 {[%clk 0:03:00]}  O-O {[%clk 0:02:58]} 5. h3 {[%clk 0:03:01]}  d6 {[%clk 0:02:53]} 6. g4 {[%clk 0:03:00]}  e5 {[%clk 0:02:46]} 7. dxe5 {[%clk 0:03:00]}  dxe5 {[%clk 0:02:47]} 8. Qxd8 {[%clk 0:02:59]}  Rxd8 {[%clk 0:02:48]} 9. Nxe5 {[%clk 0:02:58]}  Na6 {[%clk 0:02:45]} 10. Bg2 {[%clk 0:02:50]}  Nb4 {[%clk 0:02:27]} 11. O-O {[%clk 0:02:48]}  Nc2 {[%clk 0:02:27]} 12. Rb1 {[%clk 0:02:47]}  c6 {[%clk 0:02:27]} 13. Bg5 {[%clk 0:02:43]}  h6 {[%clk 0:02:23]} 14. Bh4 {[%clk 0:02:42]}  Re8 {[%clk 0:02:14]} 15. Rbc1 {[%clk 0:02:23]}  Nd4 {[%clk 0:02:05]} 16. e3 {[%clk 0:02:23]}  Ne6 {[%clk 0:01:58]} 17. Rfd1 {[%clk 0:02:20]}  Nc5 {[%clk 0:01:41]} 18. Bg3 {[%clk 0:02:09]}  Be6 {[%clk 0:01:36]} 19. b4 {[%clk 0:02:07]}  Na6 {[%clk 0:01:35]} 20. b5 {[%clk 0:02:06]}  cxb5 {[%clk 0:00:57]} 21. Bxb7 {[%clk 0:02:04]}  b4 {[%clk 0:00:56]} 22. Nb5 {[%clk 0:01:59]}  Nc5 {[%clk 0:00:52]} 23. Bxa8 {[%clk 0:01:58]}  Rxa8 {[%clk 0:00:53]} 24. Nc7 {[%clk 0:01:57]}  Rc8 {[%clk 0:00:47]} 25. Nxe6 {[%clk 0:01:57]}  fxe6 {[%clk 0:00:43]} 26. f3 {[%clk 0:01:57]}  a5 {[%clk 0:00:43]} 27. Nd3 {[%clk 0:01:56]}  Na4 {[%clk 0:00:41]} 28. Be5 {[%clk 0:01:55]}  Nc3 {[%clk 0:00:32]} 29. Bxc3 {[%clk 0:01:54]}  bxc3 {[%clk 0:00:33]} 30. Ne5 {[%clk 0:01:52]}  Nh7 {[%clk 0:00:28]} 31. Nxg6 {[%clk 0:01:50]}  Rxc4 {[%clk 0:00:26]} 32. Nf4 {[%clk 0:01:49]}  Ng5 {[%clk 0:00:25]} 33. Kg2 {[%clk 0:01:48]}  Ra4 {[%clk 0:00:17]} 34. Rc2 {[%clk 0:01:47]}  Be5 {[%clk 0:00:17]} 35. Ne2 {[%clk 0:01:46]}  Bf6 {[%clk 0:00:14]} 36. Nxc3 {[%clk 0:01:45]}  Rc4 {[%clk 0:00:14]} 37. Rdc1 {[%clk 0:01:45]}  h5 {[%clk 0:00:12]} 38. Ne2 {[%clk 0:01:44]}  hxg4 {[%clk 0:00:10]} 39. Rxc4 {[%clk 0:01:40]}  gxf3+ {[%clk 0:00:11]} 40. Kf2 {[%clk 0:01:39]}  fxe2 {[%clk 0:00:11]} 41. Kxe2 {[%clk 0:01:36]}  Nxh3 {[%clk 0:00:11]} 42. Rg4+ {[%clk 0:01:35]}  Kf7 {[%clk 0:00:10]} 43. Rf1 {[%clk 0:01:34]}  Ke7 {[%clk 0:00:09]} 44. Rg6 {[%clk 0:01:32]}  Bc3 {[%clk 0:00:01]} 45. Rf3 {[%clk 0:01:31]} 1-0


[Site "https://www.chess.com"]

[Event "Titled Tuesday Blitz June 20 Late 2023"]
[White "Tari, Aryan"]
[Black "O`Gorman, Tom"]
[WhiteFideId "1510045"]
[BlackFideId "2508249"]
[WhiteElo "2586"]
[BlackElo "2299"]
[Result "1-0"]
[Round "6"]
[TimeControl "180+2"]
[Date "2023.06.20"]
[WhiteClock "0:01:41"]
[BlackClock "0:01:53"]
[Board "47"]

1. d4 {[%clk 0:02:45]}  Nf6 {[%clk 0:02:59]} 2. c4 {[%clk 0:02:44]}  e6 {[%clk 0:02:59]} 3. Nf3 {[%clk 0:02:44]}  d5 {[%clk 0:03:00]} 4. Nc3 {[%clk 0:02:44]}  Be7 {[%clk 0:02:58]} 5. Bg5 {[%clk 0:02:40]}  O-O {[%clk 0:02:58]} 6. e3 {[%clk 0:02:40]}  b6 {[%clk 0:02:54]} 7. cxd5 {[%clk 0:02:32]}  exd5 {[%clk 0:02:55]} 8. Bd3 {[%clk 0:02:32]}  Bb7 {[%clk 0:02:55]} 9. O-O {[%clk 0:02:32]}  Ne4 {[%clk 0:02:53]} 10. Bf4 {[%clk 0:02:21]}  Nd7 {[%clk 0:02:42]} 11. Qc2 {[%clk 0:02:17]}  Ndf6 {[%clk 0:02:37]} 12. Bxc7 {[%clk 0:02:15]}  Qd7 {[%clk 0:02:16]} 13. Bf4 {[%clk 0:01:55]}  Rac8 {[%clk 0:02:15]} 14. Ne5 {[%clk 0:01:54]}  Qe6 {[%clk 0:02:13]} 15. f3 {[%clk 0:01:53]}  Nxc3 {[%clk 0:02:10]} 16. bxc3 {[%clk 0:01:54]}  Bb4 {[%clk 0:02:09]} 17. Bf5 {[%clk 0:01:43]}  Rxc3 {[%clk 0:02:09]} 18. Qxc3 {[%clk 0:01:42]}  Bxc3 {[%clk 0:02:08]} 19. Bxe6 {[%clk 0:01:42]}  Bxa1 {[%clk 0:02:06]} 20. Bxf7+ {[%clk 0:01:41]}  Rxf7 {[%clk 0:01:53]} 21. Nxf7 {[%clk 0:01:41]} 1-0


[Site "https://www.chess.com"]

[Event "Titled Tuesday Blitz June 20 Late 2023"]
[White "Santos Ruiz, Miguel"]
[Black "D`Arruda, Ricardo D."]
[WhiteFideId "22291482"]
[BlackFideId "100692"]
[WhiteElo "2499"]
[BlackElo "2539"]
[Result "1-0"]
[Round "6"]
[TimeControl "180+2"]
[Date "2023.06.20"]
[WhiteClock "0:01:34"]
[BlackClock "0:00:29"]
[Board "50"]

1. e4 {[%clk 0:03:00]}  c5 {[%clk 0:02:50]} 2. g3 {[%clk 0:02:47]}  Nc6 {[%clk 0:02:49]} 3. Bg2 {[%clk 0:02:47]}  Nf6 {[%clk 0:02:50]} 4. Ne2 {[%clk 0:02:46]}  d5 {[%clk 0:02:48]} 5. exd5 {[%clk 0:02:46]}  Nxd5 {[%clk 0:02:48]} 6. Nbc3 {[%clk 0:02:46]}  e6 {[%clk 0:02:48]} 7. O-O {[%clk 0:02:46]}  Nxc3 {[%clk 0:02:47]} 8. dxc3 {[%clk 0:02:34]}  Qxd1 {[%clk 0:02:42]} 9. Rxd1 {[%clk 0:02:34]}  Bd7 {[%clk 0:02:42]} 10. a3 {[%clk 0:02:28]}  O-O-O {[%clk 0:02:39]} 11. Be3 {[%clk 0:02:25]}  Be7 {[%clk 0:02:37]} 12. b4 {[%clk 0:02:24]}  Be8 {[%clk 0:02:07]} 13. Bxc5 {[%clk 0:02:17]}  Rxd1+ {[%clk 0:02:04]} 14. Rxd1 {[%clk 0:02:17]}  Bxc5 {[%clk 0:02:04]} 15. bxc5 {[%clk 0:02:17]}  Bd7 {[%clk 0:02:00]} 16. Nd4 {[%clk 0:02:15]}  Na5 {[%clk 0:01:55]} 17. Nb3 {[%clk 0:02:07]}  Nc6 {[%clk 0:01:35]} 18. Nd2 {[%clk 0:02:02]}  Rd8 {[%clk 0:01:34]} 19. Nc4 {[%clk 0:02:00]}  Kc7 {[%clk 0:01:29]} 20. Nd6 {[%clk 0:01:59]}  f6 {[%clk 0:01:28]} 21. Nb5+ {[%clk 0:01:59]}  Kb8 {[%clk 0:01:27]} 22. Bxc6 {[%clk 0:01:57]}  bxc6 {[%clk 0:01:27]} 23. Nd6 {[%clk 0:01:57]}  Kc7 {[%clk 0:01:26]} 24. Rb1 {[%clk 0:01:53]}  Rb8 {[%clk 0:01:26]} 25. Rb3 {[%clk 0:01:52]}  e5 {[%clk 0:01:22]} 26. Kf1 {[%clk 0:01:49]}  Rxb3 {[%clk 0:00:45]} 27. cxb3 {[%clk 0:01:49]}  g6 {[%clk 0:00:43]} 28. Ke2 {[%clk 0:01:47]}  f5 {[%clk 0:00:43]} 29. f4 {[%clk 0:01:46]}  Be6 {[%clk 0:00:40]} 30. b4 {[%clk 0:01:41]}  exf4 {[%clk 0:00:40]} 31. gxf4 {[%clk 0:01:41]}  a6 {[%clk 0:00:40]} 32. Ke3 {[%clk 0:01:40]}  Kd7 {[%clk 0:00:40]} 33. Kd4 {[%clk 0:01:41]}  Bb3 {[%clk 0:00:38]} 34. Ke5 {[%clk 0:01:41]}  Ke7 {[%clk 0:00:38]} 35. h4 {[%clk 0:01:37]}  Be6 {[%clk 0:00:36]} 36. c4 {[%clk 0:01:33]}  Bd7 {[%clk 0:00:36]} 37. a4 {[%clk 0:01:32]}  Be6 {[%clk 0:00:34]} 38. b5 {[%clk 0:01:33]}  cxb5 {[%clk 0:00:34]} 39. cxb5 {[%clk 0:01:33]}  axb5 {[%clk 0:00:29]} 40. axb5 {[%clk 0:01:34]} 1-0


[Site "https://www.chess.com"]

[Event "Titled Tuesday Blitz June 20 Late 2023"]
[White "Ozates, Tuna"]
[Black "Tristan, Leonardo"]
[WhiteFideId "6354521"]
[BlackFideId "113816"]
[WhiteElo "2151"]
[BlackElo "2461"]
[Result "0-1"]
[Round "6"]
[TimeControl "180+2"]
[Date "2023.06.20"]
[WhiteClock "0:00:36"]
[BlackClock "0:01:37"]
[Board "52"]

1. e4 {[%clk 0:03:00]}  d5 {[%clk 0:03:00]} 2. exd5 {[%clk 0:02:59]}  Qxd5 {[%clk 0:03:01]} 3. Nc3 {[%clk 0:02:59]}  Qa5 {[%clk 0:03:01]} 4. Bc4 {[%clk 0:02:56]}  Nf6 {[%clk 0:03:01]} 5. d3 {[%clk 0:02:57]}  Bg4 {[%clk 0:03:00]} 6. f3 {[%clk 0:02:55]}  Bd7 {[%clk 0:03:00]} 7. Bd2 {[%clk 0:02:55]}  Qb6 {[%clk 0:02:59]} 8. Bb3 {[%clk 0:02:53]}  e6 {[%clk 0:02:59]} 9. Qe2 {[%clk 0:02:53]}  Be7 {[%clk 0:02:51]} 10. O-O-O {[%clk 0:02:53]}  Nc6 {[%clk 0:02:52]} 11. Be3 {[%clk 0:02:52]}  Bc5 {[%clk 0:02:48]} 12. Bxc5 {[%clk 0:02:52]}  Qxc5 {[%clk 0:02:48]} 13. Nh3 {[%clk 0:02:39]}  a5 {[%clk 0:02:44]} 14. Ba4 {[%clk 0:02:29]}  O-O {[%clk 0:02:43]} 15. Nf2 {[%clk 0:02:23]}  Nd4 {[%clk 0:02:41]} 16. Qd2 {[%clk 0:02:14]}  b5 {[%clk 0:02:39]} 17. Nce4 {[%clk 0:02:11]}  Nxe4 {[%clk 0:02:34]} 18. Nxe4 {[%clk 0:02:12]}  Qc6 {[%clk 0:02:17]} 19. Nf6+ {[%clk 0:01:12]}  gxf6 {[%clk 0:02:15]} 20. Qf2 {[%clk 0:01:10]}  Qc5 {[%clk 0:02:09]} 21. Kb1 {[%clk 0:01:04]}  bxa4 {[%clk 0:02:08]} 22. c3 {[%clk 0:01:04]}  Nb3 {[%clk 0:02:02]} 23. Qh4 {[%clk 0:00:52]}  Qg5 {[%clk 0:01:50]} 24. Qc4 {[%clk 0:00:46]}  Nd2+ {[%clk 0:01:37]} 25. Rxd2 {[%clk 0:00:44]}  Qxd2 {[%clk 0:01:38]} 26. g4 {[%clk 0:00:36]}  Rab8 {[%clk 0:01:37]} 0-1


[Site "https://www.chess.com"]